fUSD/lending_fUSD_20250523
["ID","MTS","AMOUNT","RATE_DAILY","PERIOD"]
[362129944,1748017843454,-202.0,0.00024191,2]
[362129945,1748017843463,-204.0,0.00024191,2]
[362129946,1748017843473,-4390.89970507,0.00024603,2]
[362129947,1748017843482,-588.03760346,0.00024659,11]
[362129948,1748017843492,-200.0,0.00024678,2]
[362129949,1748017843501,-150.82,0.0002479,2]
[362129950,1748017843510,-150.82,0.0002479,2]
[362129951,1748017843519,-150.82,0.0002479,2]
[362129952,1748017843529,-150.82,0.0002479,2]
[362129953,1748017843538,-316413.686341,0.000248,3]
[362129954,1748017843548,-150.82,0.0002489,2]
[362129955,1748017843557,-150.82,0.0002489,2]
[362129956,1748017843566,-150.82,0.0002489,2]
[362129957,1748017843576,-150.82,0.0002489,2]
[362129958,1748017843586,-150.82,0.0002489,2]
[362129959,1748017843595,-150.82,0.0002489,2]
[362129960,1748017843604,-175.82065944,0.0002489,2]
[362129961,1748017843613,-393154.03922,0.000249,3]
[362129962,1748017843622,-151.0,0.000249,7]
[362129963,1748017843632,-151.902323,0.000249,7]
[362129964,1748017843641,-152.075034,0.000249,7]
[362129965,1748017843650,-151.0,0.000249,7]
[362129966,1748017843660,-3817.18503684,0.00024923,2]
[362129967,1748017843669,-7008.0,0.00024999,2]
[362129968,1748017843679,-1000.0,0.00025016,2]
[362129969,1748017843688,-150.82,0.0002509,2]
[362129970,1748017843697,-3311.64737809,0.000251,30]
[362129971,1748017843706,-15217.9389254,0.000251,7]
[362129972,1748017843722,-284.3,0.000251,7]
[362129973,1748017843732,-2594.6110746,0.000251,7]
[362129974,1748017843742,-752.46220286,0.00025279,2]
[362129975,1748017843753,-3638.43750221,0.00025279,2]
[362129976,1748017843762,-1152.74079937,0.00025363,2]
[362129977,1748017843784,-74.56920063,0.00025363,2]
[362129978,1748017843793,-200.0,0.00025447,2]
[362129979,1748017843802,-588.03760346,0.00025452,13]
[362129980,1748017843812,-150.0,0.00025479,2]
[362129981,1748017843822,-150.39,0.00025479,2]
[362129982,1748017843832,-150.0,0.00025479,2]
[362129983,1748017843841,-1158.37,0.00025479,2]
[362129984,1748017843851,-150.39,0.00025479,2]
[362129985,1748017843860,-299.53,0.00025479,2]
[362129986,1748017843869,-500.0,0.00025503,2]
[362129987,1748017843878,-4000.0,0.0002555,2]
[362129988,1748017843888,-150.0,0.00025613,7]
[362129989,1748017843897,-164.78,0.00025634,2]
[362129990,1748017843907,-250.0,0.00025634,2]
[362129991,1748017843916,-449.74,0.00025672,2]
[362129992,1748017843925,-6859.78061028,0.0002571,2]
[362129993,1748017843944,-5265.3587318,0.0002571,2]
[362129994,1748017843964,-4836.0,0.0002571,2]
[362129997,1748017847328,-896.7422668,0.0002,2]
[362129998,1748017847339,-315.46568883,0.00024614,2]
[362129999,1748017847348,-6938.86065792,0.0002571,2]
[362130000,1748017847358,-200.0,0.00025755,2]
[362130001,1748017847367,-3817.18503684,0.0002576,2]
[362130002,1748017847377,-207.4,0.00025761,2]
[362130003,1748017847387,-150.0,0.00025762,2]
[362130004,1748017847397,-1101.24,0.00025762,2]
[362130005,1748017847406,-1056.41,0.00025777,2]
[362130006,1748017847416,-453.43,0.00025878,2]
[362130007,1748017847425,-150.48,0.00025878,2]
[362130008,1748017847436,-150.0,0.00025878,2]
[362130009,1748017847445,-516.0,0.000259,7]
[362130010,1748017847454,-4390.89970507,0.00025955,2]
[362130011,1748017847464,-4000.0,0.00026,4]
[362130012,1748017847475,-588.03760346,0.00026245,14]
[362130013,1748017847484,-150.39,0.00026301,2]
[362130014,1748017847494,-454.38,0.00026301,2]
[362130015,1748017847503,-150.39,0.00026301,2]
[362130016,1748017847512,-453.43,0.00026301,2]
[362130017,1748017847522,-219.03,0.00026301,2]
[362130018,1748017847531,-453.43,0.00026301,2]
[362130019,1748017847540,-249.13,0.00026301,2]
[362130020,1748017847550,-453.43,0.00026301,2]
[362130021,1748017847559,-353.5,0.00026301,2]
[362130022,1748017847568,-478.58,0.00026301,2]
[362130023,1748017847577,-150.0,0.00026301,2]
[362130024,1748017847589,-453.43,0.00026301,2]
[362130025,1748017847599,-881.59,0.00026301,2]
[362130026,1748017847608,-340.24,0.00026301,2]
[362130027,1748017847617,-453.43,0.00026301,2]
[362130028,1748017847627,-150.82,0.00026313,2]
[362130029,1748017847637,-449.010398,0.00026323,4]
[362130030,1748017847646,-554.0,0.00026469,2]
[362130031,1748017847655,-1260.0,0.00026469,2]
[362130032,1748017847664,-921.0,0.00026469,2]
[362130033,1748017847673,-586.0,0.00026469,2]
[362130034,1748017847682,-1461.0,0.00026469,2]
[362130035,1748017847691,-936.0,0.00026469,2]
[362130036,1748017847701,-1310.0,0.00026469,2]
[362130037,1748017847710,-881.0,0.00026469,2]
[362130038,1748017847719,-4052.0,0.00026469,2]
[362130039,1748017847729,-500.0,0.00026469,2]
[362130040,1748017847738,-163.22325592,0.00026469,2]
[362130041,1748017847747,-500.0,0.00026496,2]
[362130042,1748017847756,-500.0,0.00026524,2]
[362130043,1748017847765,-500.0,0.00026551,2]
[362130044,1748017847774,-700.0,0.00026573,7]
[362130045,1748017847783,-500.0,0.00026579,2]
[362130046,1748017847792,-3817.18503684,0.00026597,2]
[362130047,1748017847801,-18096.85,0.000266,7]
[362130048,1748017847810,-500.0,0.00026606,2]
[362130049,1748017847819,-167.71,0.00026618,2]
[362130050,1748017847828,-4390.89970507,0.0002663,2]
[362130051,1748017847839,-500.0,0.00026633,2]
[362130052,1748017847849,-189.53857222,0.00026661,2]
[362130053,1748017847858,-632.7961,0.00026782,2]
[362130054,1748017847867,-1000.0,0.00026789,2]
[362130055,1748017847877,-2914.627,0.0002679,2]
[362130057,1748017847886,-270.9274,0.0002679,2]
[362130058,1748017847895,-2318.88157295,0.0002679,14]
[362130059,1748017847906,-635.21142705,0.0002679,14]
[362130060,1748017847915,-199.779,0.0002679,14]
[362130061,1748017847924,-150.0,0.00026809,2]
[362130062,1748017847933,-150.0,0.00026809,2]
[362130063,1748017847942,-778.09440403,0.00026847,2]
[362130064,1748017847951,-184.32652705,0.00026861,2]
[362130065,1748017847960,-678.07594,0.00026861,2]
[362130066,1748017847970,-150.82,0.0002687,2]
[362130067,1748017847979,-150.82,0.0002688,2]
[362130068,1748017847988,-2776.64335767,0.0002688,2]
[362130069,1748017848002,-50891.71735973,0.0002688,2]
[362130070,1748017848011,-1000.0,0.0002688,2]
[362130071,1748017848021,-8642.6684659,0.00026882,2]
[362130072,1748017848030,-200.0,0.00026889,2]
[362130073,1748017848039,-73652.6628,0.0002689,2]
[362130074,1748017848048,-625.67,0.0002689,3]
[362130075,1748017848057,-151.0,0.0002689,7]
[362130076,1748017848066,-151.0,0.0002689,7]
[362130077,1748017848076,-1755.1647,0.0002689,2]
[362130078,1748017848087,-458.34063646,0.000269,2]
[362130079,1748017848097,-5600.0,0.000269,9]
[362130080,1748017848293,-207.0,0.00026946,6]
[362130081,1748017848316,-189.006237,0.0002698,7]
[362130082,1748017848326,-151.0,0.00026982,7]
[362130083,1748017848337,-151.0,0.00026982,7]
[362130084,1748017848346,-151.0,0.00026982,7]
[362130085,1748017848355,-154.323869,0.00026982,7]
[362130086,1748017848364,-150.82,0.0002699,2]
[362130087,1748017848374,-150.82,0.0002699,2]
[362130088,1748017848383,-150.82,0.0002699,2]
[362130089,1748017848393,-150.82,0.0002699,2]
[362130090,1748017848402,-898.0,0.00027,2]
[362130091,1748017848412,-1090.0,0.00027,2]
[362130092,1748017848421,-14986.59766917,0.00027,2]
[362130093,1748017848431,-250000.0,0.00027,2]
[362130094,1748017848441,-152.900244,0.00027,7]
[362130095,1748017848451,-151.0,0.00027,7]
[362130096,1748017848461,-151.0,0.00027,7]
[362130097,1748017848471,-151.0,0.00027,7]
[362130098,1748017848481,-151.0,0.00027,7]
[362130099,1748017848490,-180.144252,0.00027,7]
[362130100,1748017848503,-151.0,0.00027,7]
[362130101,1748017848515,-151.0,0.00027,7]
[362130102,1748017848524,-151.0,0.00027,7]
[362130103,1748017848534,-151.0,0.00027,7]
[362130104,1748017848543,-151.0,0.00027,7]
[362130105,1748017848552,-151.0,0.00027,7]
[362130106,1748017848562,-151.0,0.00027,7]
[362130107,1748017848571,-293.278,0.00027,7]
[362130108,1748017848582,-151.0,0.00027,7]
[362130109,1748017848591,-151.0,0.00027,7]
[362130110,1748017848600,-239.653307,0.00027,7]
[362130111,1748017848611,-151.0,0.00027,7]
[362130112,1748017848620,-151.0,0.00027,7]
[362130113,1748017848629,-151.0,0.00027,7]
[362130114,1748017848650,-151.0,0.00027,7]
[362130115,1748017848660,-151.0,0.00027,7]
[362130116,1748017848670,-151.333094,0.00027,7]
[362130117,1748017848680,-151.0,0.00027,7]
[362130118,1748017848689,-151.0,0.00027,7]
[362130119,1748017848699,-151.0,0.00027,7]
[362130120,1748017848708,-151.322324,0.00027,7]
[362130121,1748017848719,-151.0,0.00027,7]
[362130122,1748017848729,-151.0,0.00027,7]
[362130123,1748017848738,-151.0,0.00027,7]
[362130124,1748017848747,-151.0,0.00027,7]
[362130125,1748017848757,-151.0,0.00027,7]
[362130126,1748017848766,-435.269596,0.00027,7]
[362130127,1748017848776,-435.269596,0.00027,7]
[362130128,1748017848785,-151.0,0.00027,7]
[362130129,1748017848794,-152.577146,0.00027,7]
[362130130,1748017848804,-151.0,0.00027,7]
[362130131,1748017848814,-151.0,0.00027,7]
[362130132,1748017848823,-151.0,0.00027,7]
[362130133,1748017848833,-151.0,0.00027,7]
[362130134,1748017848842,-151.0,0.00027,7]
[362130135,1748017848852,-226.299568,0.00027,7]
[362130136,1748017848862,-226.299568,0.00027,7]
[362130137,1748017848871,-272.190121,0.00027,7]
[362130138,1748017848882,-345.053594,0.00027,7]
[362130139,1748017848891,-272.190121,0.00027,7]
[362130140,1748017848901,-345.053594,0.00027,7]
[362130141,1748017848910,-151.0,0.00027,7]
[362130142,1748017848920,-151.0,0.00027,7]
[362130143,1748017848930,-588.03760346,0.00027038,16]
[362130144,1748017848939,-150.82,0.00027111,2]
[362130145,1748017848948,-185.98,0.00027123,2]
[362130146,1748017848958,-453.43,0.00027123,2]
[362130147,1748017848967,-215.0738,0.0002713,2]
[362130148,1748017848977,-399.94193328,0.00027151,2]
[362130149,1748017848987,-5167.37292042,0.00027186,2]
[362130150,1748017848997,-399.94193328,0.0002726,2]
[362130151,1748017849007,-150.0,0.00027264,2]
[362130152,1748017849017,-150.0,0.00027266,2]
[362130153,1748017849027,-150.0,0.0002727,2]
[362130154,1748017849036,-150.0,0.0002727,2]
[362130155,1748017849046,-150.0,0.0002728,2]
[362130156,1748017849055,-1164.24182399,0.0002728,2]
[362130157,1748017849064,-150.0,0.00027288,2]
[362130158,1748017849074,-150.0,0.00027289,2]
[362130159,1748017849086,-150.82,0.0002729,2]
[362130160,1748017849095,-150.0,0.00027291,2]
[362130161,1748017849105,-150.0,0.00027291,2]
[362130162,1748017849117,-4728.29950998,0.00027297,2]
[362130163,1748017849126,-16033.72359786,0.00027297,2]
[362130164,1748017849136,-193.14649436,0.00027297,2]
[362130165,1748017849145,-516.0,0.000273,7]
[362130166,1748017849155,-150.0,0.00027304,2]
[362130167,1748017849165,-4390.89970507,0.00027306,2]
[362130168,1748017849175,-150.0,0.00027308,2]
[362130169,1748017849185,-150.0,0.0002731,2]
[362130170,1748017849195,-150.0,0.00027314,2]
[362130171,1748017849205,-150.0,0.00027317,2]
[362130172,1748017849215,-150.0,0.00027321,2]
[362130173,1748017849224,-150.0,0.00027327,2]
[362130174,1748017849235,-1000.0,0.00027327,2]
[362130175,1748017849246,-151.33064016,0.00027329,2]
[362130176,1748017849256,-150.0,0.00027336,2]
[362130177,1748017849266,-150.0,0.00027337,2]
[362130178,1748017849275,-150.0,0.00027342,2]
[362130179,1748017849285,-150.0,0.00027346,2]
[362130180,1748017849295,-200.0,0.00027348,2]
[362130181,1748017849305,-150.0,0.00027356,2]
[362130182,1748017849315,-150.0,0.00027359,2]
[362130183,1748017849325,-150.0,0.00027362,2]
[362130184,1748017849336,-150.0,0.00027365,2]
[362130185,1748017849345,-150.0,0.00027367,2]
[362130186,1748017849360,-150.82,0.00027368,2]
[362130187,1748017849370,-399.94193328,0.0002737,2]
[362130188,1748017849381,-1000.0,0.00027372,2]
[362130189,1748017849391,-500.74484075,0.00027373,2]
[362130190,1748017849401,-152.445254,0.00027377,7]
[362130191,1748017849411,-151.0,0.00027377,7]
[362130192,1748017849421,-151.0,0.00027377,7]
[362130193,1748017849431,-151.0,0.00027377,7]
[362130194,1748017849440,-153.165667,0.00027377,7]
[362130195,1748017849451,-227.531235,0.00027377,7]
[362130196,1748017849461,-1714.356994,0.00027377,7]
[362130197,1748017849471,-588.157561,0.00027377,7]
[362130198,1748017849480,-588.157561,0.00027377,7]
[362130199,1748017849490,-601.723247,0.00027377,7]
[362130200,1748017849500,-601.723247,0.00027377,7]
[362130201,1748017849510,-151.0,0.00027377,7]
[362130202,1748017849520,-151.0,0.00027377,7]
[362130203,1748017849530,-435.269596,0.00027377,7]
[362130204,1748017849539,-435.269596,0.00027377,7]
[362130205,1748017849549,-151.0,0.00027377,7]
[362130206,1748017849559,-151.0,0.00027377,7]
[362130207,1748017849569,-151.0,0.00027377,7]
[362130208,1748017849578,-151.0,0.00027377,7]
[362130209,1748017849589,-226.299568,0.00027377,7]
[362130210,1748017849599,-226.299568,0.00027377,7]
[362130211,1748017849608,-272.190121,0.00027377,7]
[362130212,1748017849618,-345.053594,0.00027377,7]
[362130213,1748017849628,-272.190121,0.00027377,7]
[362130214,1748017849638,-345.053594,0.00027377,7]
[362130215,1748017849648,-151.0,0.00027377,7]
[362130216,1748017849658,-54187.2354872,0.00027378,2]
[362130217,1748017849668,-8935.9453911,0.00027378,2]
[362130218,1748017849677,-150.0,0.0002738,2]
[362130219,1748017849687,-150.0,0.00027384,2]
[362130220,1748017849697,-150.0,0.00027386,2]
[362130221,1748017849707,-150.82,0.00027387,2]
[362130222,1748017849718,-150.82,0.00027387,2]
[362130223,1748017849728,-151.0,0.00027387,7]
[362130224,1748017849738,-273.23399,0.00027387,7]
[362130225,1748017849747,-151.0,0.00027387,7]
[362130226,1748017849757,-151.0,0.00027387,7]
[362130227,1748017849766,-151.0,0.00027387,7]
[362130228,1748017849776,-151.0,0.00027387,7]
[362130229,1748017849785,-224.938157,0.00027387,7]
[362130230,1748017849794,-224.938157,0.00027387,7]
[362130231,1748017849804,-151.0,0.00027387,7]
[362130232,1748017849813,-151.0,0.00027387,7]
[362130233,1748017849823,-151.0,0.00027387,7]
[362130234,1748017849832,-151.0,0.00027387,7]
[362130235,1748017849842,-151.0,0.00027387,7]
[362130236,1748017849852,-151.0,0.00027387,7]
[362130237,1748017849862,-151.0,0.00027387,7]
[362130238,1748017849871,-151.0,0.00027387,7]
[362130239,1748017849881,-150.0,0.00027389,2]
[362130240,1748017849894,-44491.5228272,0.0002739,2]
[362130241,1748017849904,-150.0,0.00027393,2]
[362130242,1748017849915,-700.0,0.00027395,7]
[362130243,1748017849925,-420.0,0.00027397,4]
[362130244,1748017849936,-420.0,0.00027397,4]
[362130245,1748017849946,-420.0,0.00027397,4]
[362130246,1748017849955,-151.0,0.00027397,7]
[362130247,1748017849966,-422.64474048,0.00027397,4]
[362130248,1748017849977,-420.0,0.00027397,4]
[362130249,1748017849986,-421.70842202,0.00027397,4]
[362130250,1748017849995,-421.26271197,0.00027397,4]
[362130251,1748017850004,-420.0,0.00027397,4]
[362130252,1748017850014,-398.70240495,0.00027397,4]
[362130253,1748017850023,-420.0,0.00027397,4]
[362130254,1748017850033,-421.13858802,0.00027397,4]
[362130255,1748017850043,-308.97121459,0.00027397,4]
[362130256,1748017850052,-421.66787664,0.00027397,4]
[362130257,1748017850062,-420.0,0.00027397,4]
[362130258,1748017850071,-420.0,0.00027397,4]
[362130259,1748017850081,-420.0,0.00027397,4]
[362130260,1748017850091,-440.87712649,0.00027397,4]
[362130261,1748017850101,-151.0,0.00027397,7]
[362130262,1748017850111,-152.602475,0.00027397,7]
[362130263,1748017850122,-421.82961407,0.00027397,4]
[362130264,1748017850131,-420.0,0.00027397,4]
[362130265,1748017850140,-420.0,0.00027397,4]
[362130266,1748017850151,-422.94291313,0.00027397,4]
[362130267,1748017850160,-151.44873,0.00027397,4]
[362130268,1748017850169,-421.02421023,0.00027397,4]
[362130269,1748017850179,-589.245341,0.00027397,4]
[362130270,1748017850189,-420.0,0.00027397,4]
[362130271,1748017850198,-420.0,0.00027397,4]
[362130272,1748017850208,-420.0,0.00027397,4]
[362130273,1748017850217,-563.757812,0.00027397,4]
[362130274,1748017850227,-420.0,0.00027397,4]
[362130275,1748017850236,-420.0,0.00027397,4]
[362130276,1748017850245,-166.972791,0.00027397,4]
[362130277,1748017850255,-421.72663817,0.00027397,4]
[362130278,1748017850264,-420.0,0.00027397,4]
[362130279,1748017850273,-421.24008224,0.00027397,4]
[362130280,1748017850283,-423.27792305,0.00027397,4]
[362130281,1748017850293,-420.0,0.00027397,4]
[362130282,1748017850302,-420.0,0.00027397,4]
[362130283,1748017850312,-420.0,0.00027397,4]
[362130284,1748017850321,-420.0,0.00027397,4]
[362130285,1748017850330,-422.47191124,0.00027397,4]
[362130286,1748017850341,-420.0,0.00027397,4]
[362130287,1748017850351,-420.0,0.00027397,4]
[362130288,1748017850362,-424.62125682,0.00027397,4]
[362130289,1748017850373,-409.66608104,0.00027397,4]
[362130290,1748017850383,-423.32453503,0.00027397,4]
[362130291,1748017850392,-421.00401729,0.00027397,4]
[362130292,1748017850401,-420.0,0.00027397,4]
[362130293,1748017850411,-419.99697219,0.00027397,4]
[362130294,1748017850422,-420.0,0.00027397,4]
[362130295,1748017850433,-420.0,0.00027397,4]
[362130296,1748017850448,-398.18827799,0.00027397,4]
[362130297,1748017850458,-420.0,0.00027397,4]
[362130298,1748017850469,-420.0,0.00027397,4]
[362130299,1748017850479,-422.39306371,0.00027397,4]
[362130300,1748017850489,-420.0,0.00027397,4]
[362130301,1748017850499,-420.0,0.00027397,4]
[362130302,1748017850510,-420.0,0.00027397,4]
[362130303,1748017850520,-420.0,0.00027397,4]
[362130304,1748017850530,-421.19991321,0.00027397,4]
[362130305,1748017850540,-420.0,0.00027397,4]
[362130306,1748017850549,-420.0,0.00027397,4]
[362130307,1748017850559,-496.03,0.00027397,4]
[362130308,1748017850569,-420.0,0.00027397,4]
[362130309,1748017850578,-420.0,0.00027397,4]
[362130310,1748017850589,-420.0,0.00027397,4]
[362130311,1748017850599,-420.0,0.00027397,4]
[362130312,1748017850608,-420.0,0.00027397,4]
[362130313,1748017850619,-420.0,0.00027397,4]
[362130314,1748017850629,-420.0,0.00027397,4]
[362130315,1748017850639,-420.0,0.00027397,4]
[362130316,1748017850649,-420.0,0.00027397,4]
[362130317,1748017850659,-420.0,0.00027397,4]
[362130318,1748017850669,-420.0,0.00027397,4]
[362130319,1748017850678,-420.0,0.00027397,4]
[362130320,1748017850688,-420.0,0.00027397,4]
[362130321,1748017850697,-420.0,0.00027397,4]
[362130322,1748017850707,-420.0,0.00027397,4]
[362130323,1748017850717,-420.0,0.00027397,4]
[362130324,1748017850727,-429.95847918,0.00027397,4]
[362130325,1748017850737,-420.0,0.00027397,4]
[362130326,1748017850746,-420.0,0.00027397,4]
[362130327,1748017850756,-420.0,0.00027397,4]
[362130328,1748017850766,-420.0,0.00027397,4]
[362130329,1748017850776,-420.0,0.00027397,4]
[362130330,1748017850786,-420.0,0.00027397,4]
[362130331,1748017850795,-420.0,0.00027397,4]
[362130332,1748017850805,-420.0,0.00027397,4]
[362130333,1748017850815,-426.04406801,0.00027397,4]
[362130334,1748017850825,-420.0,0.00027397,4]
[362130335,1748017850835,-420.0,0.00027397,4]
[362130336,1748017850845,-420.0,0.00027397,4]
[362130337,1748017850855,-420.0,0.00027397,4]
[362130338,1748017850865,-420.0,0.00027397,4]
[362130339,1748017850875,-420.0,0.00027397,4]
[362130340,1748017850885,-420.0,0.00027397,4]
[362130341,1748017850894,-420.0,0.00027397,4]
[362130342,1748017850904,-420.0,0.00027397,4]
[362130343,1748017850914,-420.0,0.00027397,4]
[362130344,1748017850924,-420.0,0.00027397,4]
[362130345,1748017850934,-420.0,0.00027397,4]
[362130346,1748017850943,-420.0,0.00027397,4]
[362130347,1748017850953,-420.0,0.00027397,4]
[362130348,1748017850963,-420.0,0.00027397,4]
[362130349,1748017850972,-322.63868048,0.00027397,4]
[362130350,1748017850981,-420.0,0.00027397,4]
[362130351,1748017850991,-420.0,0.00027397,4]
[362130352,1748017851000,-420.0,0.00027397,4]
[362130353,1748017851010,-420.0,0.00027397,4]
[362130354,1748017851019,-420.0,0.00027397,4]
[362130355,1748017851029,-420.0,0.00027397,4]
[362130356,1748017851039,-420.0,0.00027397,4]
[362130357,1748017851049,-518.58178567,0.00027397,4]
[362130358,1748017851059,-420.0,0.00027397,4]
[362130359,1748017851068,-420.0,0.00027397,4]
[362130360,1748017851078,-420.0,0.00027397,4]
[362130361,1748017851090,-420.0,0.00027397,4]
[362130362,1748017851099,-420.0,0.00027397,4]
[362130363,1748017851111,-420.0,0.00027397,4]
[362130364,1748017851121,-420.0,0.00027397,4]
[362130365,1748017851131,-420.0,0.00027397,4]
[362130366,1748017851140,-420.0,0.00027397,4]
[362130367,1748017851150,-420.0,0.00027397,4]
[362130368,1748017851160,-420.0,0.00027397,4]
[362130369,1748017851169,-420.0,0.00027397,4]
[362130370,1748017851178,-420.0,0.00027397,4]
[362130371,1748017851189,-420.0,0.00027397,4]
[362130372,1748017851199,-335.82207434,0.00027397,4]
[362130373,1748017851208,-420.0,0.00027397,4]
[362130374,1748017851218,-420.0,0.00027397,4]
[362130375,1748017851227,-420.0,0.00027397,4]
[362130376,1748017851237,-420.0,0.00027397,4]
[362130377,1748017851246,-420.0,0.00027397,4]
[362130378,1748017851256,-420.0,0.00027397,4]
[362130379,1748017851266,-151.0,0.00027397,7]
[362130380,1748017851275,-151.0,0.00027397,7]
[362130381,1748017851285,-151.0,0.00027397,7]
[362130382,1748017851294,-420.0,0.00027397,4]
[362130383,1748017851304,-426.30136863,0.00027397,4]
[362130384,1748017851314,-180.144252,0.00027397,7]
[362130385,1748017851324,-180.144252,0.00027397,7]
[362130386,1748017851333,-180.144252,0.00027397,7]
[362130387,1748017851344,-293.215641,0.00027397,7]
[362130388,1748017851354,-250.0,0.00027397,4]
[362130389,1748017851364,-420.0,0.00027397,4]
[362130390,1748017851379,-420.0,0.00027397,4]
[362130391,1748017851388,-420.0,0.00027397,4]
[362130392,1748017851398,-420.0,0.00027397,4]
[362130393,1748017851408,-420.0,0.00027397,4]
[362130394,1748017851417,-401.65775818,0.00027397,4]
[362130395,1748017851427,-420.0,0.00027397,4]
[362130396,1748017851437,-346.88461116,0.00027397,4]
[362130397,1748017851447,-420.87280493,0.00027397,4]
[362130398,1748017851457,-420.0,0.00027397,4]
[362130399,1748017851467,-420.0,0.00027397,4]
[362130400,1748017851478,-422.09688009,0.00027397,4]
[362130401,1748017851488,-420.0,0.00027397,4]
[362130402,1748017851499,-420.0,0.00027397,4]
[362130403,1748017851509,-420.0,0.00027397,4]
[362130404,1748017851520,-420.0,0.00027397,4]
[362130405,1748017851531,-420.0,0.00027397,4]
[362130406,1748017851551,-420.0,0.00027397,4]
[362130407,1748017851562,-420.0,0.00027397,4]
[362130408,1748017851574,-420.0,0.00027397,4]
[362130409,1748017851584,-420.88400168,0.00027397,4]
[362130410,1748017851595,-420.0,0.00027397,4]
[362130411,1748017851605,-420.0,0.00027397,4]
[362130412,1748017851614,-420.0,0.00027397,4]
[362130413,1748017851624,-423.13131233,0.00027397,4]
[362130414,1748017851634,-420.0,0.00027397,4]
[362130415,1748017851644,-420.0,0.00027397,4]
[362130416,1748017851653,-420.0,0.00027397,4]
[362130417,1748017851663,-420.0,0.00027397,4]
[362130418,1748017851673,-420.0,0.00027397,4]
[362130419,1748017851682,-420.0,0.00027397,4]
[362130420,1748017851692,-420.0,0.00027397,4]
[362130421,1748017851702,-420.0,0.00027397,4]
[362130422,1748017851712,-420.0,0.00027397,4]
[362130423,1748017851721,-420.0,0.00027397,4]
[362130424,1748017851731,-420.0,0.00027397,4]
[362130425,1748017851741,-427.98994928,0.00027397,4]
[362130426,1748017851750,-420.0,0.00027397,4]
[362130427,1748017851760,-420.0,0.00027397,4]
[362130428,1748017851769,-420.0,0.00027397,4]
[362130429,1748017851779,-420.0,0.00027397,4]
[362130430,1748017851789,-420.0,0.00027397,4]
[362130431,1748017851798,-420.0,0.00027397,4]
[362130432,1748017851808,-420.0,0.00027397,4]
[362130433,1748017851818,-420.0,0.00027397,4]
[362130434,1748017851827,-151.0,0.00027397,2]
[362130435,1748017851837,-151.0,0.00027397,2]
[362130436,1748017851847,-420.0,0.00027397,4]
[362130437,1748017851856,-151.0,0.00027397,2]
[362130438,1748017851866,-420.0,0.00027397,4]
[362130439,1748017851875,-199.55136102,0.00027397,4]
[362130440,1748017851885,-157.265005,0.00027397,4]
[362130441,1748017851894,-151.0,0.00027397,2]
[362130442,1748017851904,-420.0,0.00027397,4]
[362130443,1748017851913,-151.0,0.00027397,2]
[362130444,1748017851923,-263.725833,0.00027397,2]
[362130445,1748017851933,-420.0,0.00027397,4]
[362130446,1748017851944,-420.0,0.00027397,4]